Workbook

Sheet Default Pasters (hidden)
A1: Normal First Part
A4: Incident CBAS (not pertinent)
A6: Incident CBAS (All Done OK-Not_High)
A8: Incident CBAS (All Done OK-High_Critical)
A11: Last 4
A12: Categ | B12: CI | C12: Assignm | D12: PSD #
A14: Categ | B14: CI | C14: Assignm | D14: PSD #
A21: Incident CBAS (not pertinent)
A23: Incident CBAS (No CBAS check-Not_High)
A25: Incident CBAS (No CBAS check_Critical)

Sheet Buttons
O2: Cognos

Sheet HarmonizedNF_SSC_TemplatesScore (hidden)
P1: TICKETS
P2: Requestor information (4) | Q2: Department acronym (2) | R2: Summary line (2) | S2: Template Usage (4) | T2: WHO? (2) | U2: WHAT (2) | V2: Logs properly entered,No Protected data (21) | W2: CBAS Validated (2) | X2: Designated Site Validated (2) | Y2: Impact and urgency (4) | Z2: PA details logged (2) | AA2: IC Activate (15 minutes) (21) | AB2: Categorization (1) | AC2: CI (5) | AD2: Sent to proper Support Group (5) | AE2: PSD Ticket Number logged (21) | AF2: =IF(D2<>"",IF(P2="No",0,4)+IF(Q3="No",0,2)+IF(R2="No",0,2)+IF(S2="No",0,4)+IF(T2="No",0,2)+IF(U2="No",0,2)+IF(V2="No",0,21)+IF(W2="No",0,2)+IF(X2="No",0,2)+IF(Y2="No",0,4)+IF(Z2="No",0,2)+IF(AA2="No",0,21)+IF(AB2="No",0,1)+IF(AC2="No",0,5)+IF(AD2="No",0,5)+IF(AE2="No",0,21),"") -> 
P3: RACHEL (October) ESD Question and Scoring
P4: Did the agent document the proper requestor information | Q4: Did the agent documents the department acronym | R4: summary line is both accurate and formattes as required | S4: Template Usage | T4: Did the agent ask "who"? | U4: Did the agent ask "what"? | V4: Validate that log are properly entered and or no protected data entered | W4: CBAS Validated? | X4: Designated Site Validated? | Y4: Impact and urgency | Z4: Did the agent add details to the ticket log | AA4: Did the agent engage proper incident coordinator team activate upon agreed SLO (15 minutes after IN created) | AB4: Did the agent selects the appropriate categorization | AC4: Did the agent selects the appropriate configuration item , Application, Foundation or asset | AD4: Did the agent assign the ticket to the appropriate Support Group | AE4: Did the agent capture and log the partner service desk reference ticket number | AF4: Score | AG4: Result:
P5: Yes | Q5: Yes | R5: Yes | S5: Yes | T5: Yes | U5: Yes | V5: Yes | AF5: =IF(P6="No",0,4)+IF(Q6="No",0,2)+IF(R5="No",0,2)+IF(S5="No",0,4)+IF(T5="No",0,2)+IF(U5="No",0,2)+IF(V5="No",0,21)+IF(W5="No",0,2)+IF(X5="No",0,2)+IF(Y5="No",0,4)+IF(Z5="No",0,2)+IF(AA5="No",0,21)+IF(AB5="No",0,1)+IF(AC5="No",0,5)+IF(AD5="No",0,5)+IF(AE5="No",0,21) -> 100
P6: 4 | Q6: 2 | R6: 2 | S6: 4 | T6: 2 | U6: 2 | V6: 21 | W6: 2 | X6: 2 | Y6: 4 | Z6: 2 | AA6: 21 | AB6: 1 | AC6: 5 | AD6: 5 | AE6: 21 | AF6: =P6+Q6+R6+S6+T6+U6+V6+W6+X6+Y6+Z6+AA6+AB6+AC6+AD6+AE6 -> 100
V10: ICE
V12: Was the proper greeting used including agent name? (5) | W12: Answers the call in the selected language? (21) | X12: Understands the call and paraphrases? (2) | Y12: Asks "who"? (2) | Z12: Asks "what"? (2) | AA12: ask "why"? (1) | AB12: ask "when"? (2) | AC12: ask "where"? (2) | AD12: Uses professional conduct and tone? (10) | AE12: Uses the proper hold technique? (5) | AF12: The agent did not hang-up or argue with the caller. (21) | AG12: Uses a clear voice and focused dialoge and tone? (2) | AH12: Takes ownership of the call? (2) | AI12: Ticket Number (21) | AJ12: Closing Script (2) | AK12: =IF(D12<>"",IF(V12="No",0,5)+IF(W12="No",0,21)+IF(X12="No",0,2)+IF(Y12="No",0,2)+IF(Z12="No",0,2)+IF(AA12="No",0,1)+IF(AB12="No",0,2)+IF(AC12="No",0,2)+IF(AD12="No",0,10)+IF(AE12="No",0,5)+IF(AF12="No",0,21)+IF(AG12="No",0,2)+IF(AH12="No",0,2)+IF(AI12="No",0,21)+IF(AJ12="No",0,2),"") -> 
V13: RACHEL (October) ICE call question and scoring
V14: Was the proper greeting used including agent name? | W14: Did the agent answer the call in the language of selection? | X14: Did the agent understand the call and paraphrase? | Y14: Did the agent ask "who"? | Z14: Did the agent ask "what"? | AA14: Did the agent ask "why"? | AB14: Did the agent ask "when"? | AC14: Did the agent ask "where"? | AD14: Did the agent use professional conduct and tone? | AE14: Did the agent use the proper hold technique? | AF14: The agent did not hang-up or argue with the caller. | AG14: Did the agent use a clear voice and focused dialoge and tone? | AH14: Did the agent take ownership of the call? | AI14: Provide Ticket Number | AJ14: Used proper Closing Script | AK14: Score
V15: Yes | W15: Yes | X15: Yes | Y15: Yes | Z15: Yes | AA15: Yes | AB15: Yes | AC15: Yes | AD15: Yes | AE15: Yes | AF15: Yes | AG15: Yes | AH15: Yes | AI15: Yes | AJ15: Yes | AK15: =IF(V15="No",0,5)+IF(W15="No",0,21)+IF(X15="No",0,2)+IF(Y15="No",0,2)+IF(Z15="No",0,2)+IF(AA15="No",0,1)+IF(AB15="No",0,2)+IF(AC15="No",0,2)+IF(AD15="No",0,10)+IF(AE15="No",0,5)+IF(AF15="No",0,21)+IF(AG15="No",0,2)+IF(AH15="No",0,2)+IF(AI15="No",0,21)+IF(AJ15="No",0,2) -> 100
V16: 5 | W16: 21 | X16: 2 | Y16: 2 | Z16: 2 | AA16: 1 | AB16: 2 | AC16: 2 | AD16: 10 | AE16: 5 | AF16: 21 | AG16: 2 | AH16: 2 | AI16: 21 | AJ16: 2 | AK16: =SUM(V16:AJ16) -> 100

Sheet FormDataValiCondFormatRefs (hidden)
A1: Desk | B1: TIX, ICE, Combo | C1: ColumnHeader | D1: NEW_DataVal | E1: REG_DataVal | F1: CondFormatCriteria | G1: CF_Range | H1: FormatType | I1: Sample | J1: Formula | K1: HideWhenLoading | L1: HideWhenAuditing
A2: ESD | B2: TIX | C2: Audit Cycle | D2: =ESD_REF[[#This Row],[REG_DataVal]] -> HOM,CHOM | E2: HOM,CHOM | F2: ="PHOM" ="CHOM" | G2: =$A:$A | H2: General | I2: =IF(AND(OR(I33="Pass", I33="Fail"),OR(I10="P1Nw3T",I10="P2Nw3B",I10="P3Nw4T",I10="P4Nw4B",I10="P5N_IW_T",I10="P3R_T",I10="P4R_IW_T")),"PHOM",IF(AND(OR(I33="Pass", I33="Fail"),OR(I10="C1Nw1T",I10="C2Nw1B",I10="C3Nw2T",I10="C4Nw2B",I10="C5N_IW_T",I10="C1Rw1T",I10="C2Rw2B")),"CHOM","")) -> PHOM | J2: =IF(AND([Status Date: ]>=43389,[Status Date: ]<=43404),"PHOM",IF(AND([Status Date: ]>=43405,[Status Date: ]<=43419),"FHOM",IF(OR([@[Select Code]]="P1Nw3T",[@[Select Code]]="P2Nw3B",[@[Select Code]]="P3Nw4T",[@[Select Code]]="P4Nw4B",[@[Select Code]]="P5N_IW_T",[@[Select Code]]="P1R_T",[@[Select Code]]="P2R_IW_T"),"PHOM",IF(OR([@[Select Code]]="C1Nw1T",[@[Select Code]]="C2Nw1B",[@[Select Code]]="C3Nw2T",[@[Select Code]]="C4Nw2B",[@[Select Code]]="C5N_IW_T",[@[Select Code]]="C1Rw1T",[@[Select Code]]="C2Rw2B"),"CHOM",""))))
A3: ESD | B3: TIX | C3: Audit Status | D3: =ESD_REF[[#This Row],[REG_DataVal]] -> COMP,NQ,REM | E3: COMP,NQ,REM | G3: '=$B:$B | H3: General | J3: =IF(AND(OR(X3="Pass", X3="Fail"),OR(#REF!="P1Nw3T",#REF!="P2Nw3B",#REF!="P3Nw4T",#REF!="P4Nw4B",#REF!="P5N_IW_T",#REF!="P3R_T",#REF!="P4R_IW_T")),"PHOM",IF(AND(OR(X3="Pass", X3="Fail"),OR(#REF!="C1Nw1T",#REF!="C2Nw1B",#REF!="C3Nw2T",#REF!="C4Nw2B",#REF!="C5N_IW_T",#REF!="C1Rw1T",#REF!="C2Rw2B")),"CHOM","")) -> 
A4: ESD | B4: TIX | C4: QA Agent | D4: =ESD_REF[[#This Row],[REG_DataVal]] -> Luc Trudel,Louis Lafleur,Fernando Ortiz,Yvelson Antoine | E4: Luc Trudel,Louis Lafleur,Fernando Ortiz,Yvelson Antoine | H4: General | I4: Luc Trudel
A5: ESD | B5: TIX | C5: Audit Date | D5: =ESD_REF[[#This Row],[REG_DataVal]] ->  | H5: Custom | I5: 2018-11-01
A6: ESD | B6: TIX | C6: Key | D6: =ESD_REF[[#This Row],[REG_DataVal]] ->  | H6: General | I6: 1
A7: ESD | B7: TIX | C7: Ag. Status | D7: =ESD_REF[[#This Row],[REG_DataVal]] -> NEW,REG | E7: NEW,REG | G7: =$E:$E | H7: General | I7: NEW
A8: ESD | B8: TIX | C8: ECD ID | D8: =ESD_REF[[#This Row],[REG_DataVal]] ->  | H8: General | I8: ALTHEA.ADIBE
A9: ESD | B9: TIX | C9: INFOWEB ID | D9: =ESD_REF[[#This Row],[REG_DataVal]] ->  | H9: General | I9: =_xlfn.IFNA(VLOOKUP(I$8,VLOOKUP_TICKETS_NEW,2,FALSE),"EMPTY") ->  | J9: =IFNA(VLOOKUP($F2,VLOOKUP_TICKETS_NEW,2,FALSE),"EMPTY")
A10: ESD | B10: TIX | C10: Select Code | D10: P1Nw3T,P2Nw3B,P3Nw4T,P4Nw4B,P5N_IW_T,C1Nw1T,C2Nw1B,C3Nw2T,C4Nw2B,C5N_IW_T | E10: P3R_T,P4R_IW_T,C1Rw1T,C2Rw2B | H10: General | I10: P1Nw3T
A11: ESD | B11: TIX | C11: Ticket # | D11: =ESD_REF[[#This Row],[REG_DataVal]] ->  | H11: General | I11: SR11053289
A12: ESD | B12: TIX | C12: EXTERNALSYSTEM | D12: =ESD_REF[[#This Row],[REG_DataVal]] ->  | H12: General | I12: PHONECALL
A13: ESD | B13: TIX | C13: Reported Date: | D13: =ESD_REF[[#This Row],[REG_DataVal]] ->  | H13: Custom | I13: 2018-10-05T11:15:50
A14: ESD | B14: TIX | C14: Status Date: | D14: =ESD_REF[[#This Row],[REG_DataVal]] ->  | H14: Custom | I14: 2018-10-16T05:47:49
A15: ESD | B15: TIX | C15: Status | D15: =ESD_REF[[#This Row],[REG_DataVal]] ->  | H15: General | I15: CLOSED
A16: ESD | B16: TIX | C16: Document the proper requestor information | D16: =ESD_REF[[#This Row],[REG_DataVal]] -> Yes,No | E16: Yes,No | F16: ="No" | G16: =$P:$AE | H16: General | I16: Yes
A17: ESD | B17: TIX | C17: Documents the department acronym | D17: =ESD_REF[[#This Row],[REG_DataVal]] ->  | F17: ="No" | G17: =$P:$AE | H17: General | I17: Yes
A18: ESD | B18: TIX | C18: Summary line is both accurate and formatted as required | D18: =ESD_REF[[#This Row],[REG_DataVal]] ->  | F18: ="No" | G18: =$P:$AE | H18: General | I18: Yes
A19: ESD | B19: TIX | C19: Template Usage | D19: =ESD_REF[[#This Row],[REG_DataVal]] ->  | F19: ="No" | G19: =$P:$AE | H19: General | I19: Yes
A20: ESD | B20: TIX | C20: WHO? (Affected User or Client Info) | D20: =ESD_REF[[#This Row],[REG_DataVal]] ->  | F20: ="No" | G20: =$P:$AE | H20: General | I20: Yes
A21: ESD | B21: TIX | C21: WHAT | D21: =ESD_REF[[#This Row],[REG_DataVal]] ->  | F21: ="No" | G21: =$P:$AE | H21: General | I21: Yes
A22: ESD | B22: TIX | C22: Validate that logs are properly entered and or no protected data entered | D22: =ESD_REF[[#This Row],[REG_DataVal]] ->  | F22: ="No" | G22: =$P:$AE | H22: General | I22: Yes
A23: ESD | B23: TIX | C23: CBAS Validated? | D23: =ESD_REF[[#This Row],[REG_DataVal]] ->  | F23: ="No" | G23: =$P:$AE | H23: General | I23: NA
A24: ESD | B24: TIX | C24: Designated Site Validated? | D24: =ESD_REF[[#This Row],[REG_DataVal]] ->  | F24: ="No" | G24: =$P:$AE | H24: General | I24: NA
A25: ESD | B25: TIX | C25: Impact and urgency | D25: =ESD_REF[[#This Row],[REG_DataVal]] ->  | F25: ="No" | G25: =$P:$AE | H25: General | I25: NA
A26: ESD | B26: TIX | C26: Add details to the ticket log | D26: =ESD_REF[[#This Row],[REG_DataVal]] ->  | F26: ="No" | G26: =$P:$AE | H26: General | I26: NA
A27: ESD | B27: TIX | C27: Engage proper incident coordinator team activate upon agreed SLO (15 minutes after IN created) | D27: =ESD_REF[[#This Row],[REG_DataVal]] ->  | F27: ="No" | G27: =$P:$AE | H27: General | I27: NA
A28: ESD | B28: TIX | C28: Select appropriate categorization | D28: =ESD_REF[[#This Row],[REG_DataVal]] ->  | F28: ="No" | G28: =$P:$AE | H28: General | I28: Yes
A29: ESD | B29: TIX | C29: ci | D29: =ESD_REF[[#This Row],[REG_DataVal]] ->  | F29: ="No" | G29: =$P:$AE | H29: General | I29: Yes
A30: ESD | B30: TIX | C30: Assign the ticket to the appropriate Support Group | D30: =ESD_REF[[#This Row],[REG_DataVal]] ->  | F30: ="No" | G30: =$P:$AE | H30: General | I30: Yes
A31: ESD | B31: TIX | C31: apture and log the partner service desk reference ticket number | D31: =ESD_REF[[#This Row],[REG_DataVal]] ->  | F31: ="No" | G31: =$P:$AE | H31: General | I31: Yes
A32: ESD | B32: TIX | C32: Score | D32: =ESD_REF[[#This Row],[REG_DataVal]] ->  | H32: General | I32: =IF(I5<>"",IF(I$16="No",0,10)+IF(I$17="No",0,3)+IF(I$18="No",0,4)+IF(I$19="No",0,10)+IF(I$20="No",0,5)+IF(I$21="No",0,5)+IF(I$22="No",0,10)+IF(I$23="No",0,2)+IF(I$24="No",0,2)+IF(I$25="No",0,2)+IF(I$26="No",0,2)+IF(I$27="No",0,2)+IF(I$28="No",0,10)+IF(I$29="No",0,10)+IF(I$30="No",0,10)+IF(I$31="No",0,10)+3,"") -> 100 | J32: =IF(C2<>"",IF($N2="No",0,10)+IF($O2="No",0,3)+IF($P2="No",0,4)+IF($Q2="No",0,10)+IF($R2="No",0,5)+IF($S2="No",0,5)+IF($T2="No",0,10)+IF($U2="No",0,2)+IF($V2="No",0,2)+IF($W2="No",0,2)+IF($X2="No",0,2)+IF($Y2="No",0,2)+IF($Z2="No",0,10)+IF($AA2="No",0,10)+IF($AB2="No",0,10)+IF($AC2="No",0,10)+3,"")
A33: ESD | B33: TIX | C33: Result | D33: =ESD_REF[[#This Row],[REG_DataVal]] -> Pass,Fail,Proces Fail | E33: Pass,Fail,Proces Fail | F33: ="Pass" ="Fail" | G33: AG:AG | H33: General | I33: Pass
A34: ESD | B34: TIX | C34: Comment on Negative result | D34: =ESD_REF[[#This Row],[REG_DataVal]] ->  | H34: General
A35: ESD | B35: TIX | C35: SSC QA Agent | D35: =ESD_REF[[#This Row],[REG_DataVal]] -> Jason Cashman,Chris Doucette,Krishna Madaparti | E35: Jason Cashman,Chris Doucette,Krishna Madaparti | H35: General
A36: ESD | B36: TIX | C36: SSC Score | D36: =ESD_REF[[#This Row],[REG_DataVal]] ->  | H36: General
A37: ESD | B37: TIX | C37: SSC Result | D37: =ESD_REF[[#This Row],[REG_DataVal]] -> Pass,Fail,Proces Fail | E37: Pass,Fail,Proces Fail | G37: AK:AK | H37: General | J37: =IF(AND(OR(X37="Pass", X37="Fail"),OR(#REF!="P1Nw3T",#REF!="P2Nw3B",#REF!="P3Nw4T",#REF!="P4Nw4B",#REF!="P5N_IW_T",#REF!="P3R_T",#REF!="P4R_IW_T")),"PHOM",IF(AND(OR(X37="Pass", X37="Fail"),OR(#REF!="C1Nw1T",#REF!="C2Nw1B",#REF!="C3Nw2T",#REF!="C4Nw2B",#REF!="C5N_IW_T",#REF!="C1Rw1T",#REF!="C2Rw2B")),"CHOM","")) -> 
A38: ESD | B38: ICE | C38: Audit Cycle | D38: =ESD_REF[[#This Row],[REG_DataVal]] -> PHOM,CHOM | E38: PHOM,CHOM | F38: ="PHOM" ="CHOM" | G38: =$A:$A | H38: General | I38: =IF(AND(OR(I70="Pass", I70="Fail"),OR(I46="PN1T",I46="PN2B",I46="PR1T",I46="PR2B")),"PHOM",IF(AND(OR(I70="Pass", I70="Fail"),OR(I46="CN1T",I46="CN2B",I46="CR1T",I46="CR2B")),"CHOM","")) ->  | J38: =IF(AND([@[ICE Call recording Date: (DD/MM/YYYY)]]>=43389,[@[ICE Call recording Date: (DD/MM/YYYY)]]<=43404),"PHOM",IF(AND([@[ICE Call recording Date: (DD/MM/YYYY)]]>=43405,[@[ICE Call recording Date: (DD/MM/YYYY)]]<=43419),"FHOM",IF(OR([@[Select Code]]="PN1T",[@[Select Code]]="PN2B",[@[Select Code]]="PR1T",[@[Select Code]]="PR2B"),"PHOM",IF(OR([@[Select Code]]="CN1T",[@[Select Code]]="CN2B",[@[Select Code]]="CR1T",[@[Select Code]]="CR2B"),"CHOM",""))))
A39: ESD | B39: ICE | C39: QA Agent | D39: =ESD_REF[[#This Row],[REG_DataVal]] -> Luc Trudel,Louis Lafleur,Fernando Ortiz,Yvelson Antoine | E39: Luc Trudel,Louis Lafleur,Fernando Ortiz,Yvelson Antoine | H39: General
A40: ESD | B40: ICE | C40: Audit Date | D40: =ESD_REF[[#This Row],[REG_DataVal]] ->  | H40: Custom | I40: 2018-11-01
A41: ESD | B41: ICE | C41: Key | D41: =ESD_REF[[#This Row],[REG_DataVal]] ->  | H41: General | I41: 1
A42: ESD | B42: ICE | C42: Ag. Status | D42: NEW,REG | E42: NEW,REG | G42: =$E:$E | H42: General | I42: NEW
A43: ESD | B43: ICE | C43: ICE # | D43: =ESD_REF[[#This Row],[REG_DataVal]] -> =ESD_Agents!$A$1:$A$56 | E43: =ESD_Agents!$A$1:$A$56 | H43: General
A44: ESD | B44: ICE | C44: ECD ID | D44: =ESD_REF[[#This Row],[REG_DataVal]] ->  | H44: General | I44: =_xlfn.IFNA(VLOOKUP(I$43,[2]!ESD_Agents[#All],2,FALSE),"") -> 
A45: ESD | B45: ICE | C45: INFOWEB ID | D45: =ESD_REF[[#This Row],[REG_DataVal]] ->  | H45: General | I45: =_xlfn.IFNA(VLOOKUP(I$43,[2]!ESD_Agents[#All],3,FALSE),"") -> 
A46: ESD | B46: ICE | C46: Select Code | D46: PN1T,PN2B,CN1T,CN2B | E46: PR1T,PR2B,CR1T,CR2B | H46: General
A47: ESD | B47: ICE | C47: Dept. | D47: =ESD_REF[[#This Row],[REG_DataVal]] -> HC,ESD | E47: HC,ESD | H47: General | I47: =IF([2]!OCT_ICE[[#This Row],[Audit Date]]<>"","ESD","") -> 
A48: ESD | B48: ICE | C48: Link Wav | D48: =ESD_REF[[#This Row],[REG_DataVal]] ->  | H48: General | I48: =HYPERLINK(I49,"wav") -> wav
A49: ESD | B49: ICE | C49: File Name | D49: =ESD_REF[[#This Row],[REG_DataVal]] ->  | H49: General
A50: ESD | B50: ICE | C50: ICE Queue Language: | D50: =ESD_REF[[#This Row],[REG_DataVal]] -> English,French,NONE | E50: English,French,NONE | F50: French,NONE | G50: =$M:$M | H50: General
A51: ESD | B51: ICE | C51: ICE Call recording Date: (DD/MM/YYYY) | D51: =ESD_REF[[#This Row],[REG_DataVal]] ->  | H51: Date
A52: ESD | B52: ICE | C52: ICE Call time: (H:MM:SS) | D52: =ESD_REF[[#This Row],[REG_DataVal]] ->  | H52: Date
A53: ESD | B53: ICE | C53: ICE Call duration: (H:MM:SS) | D53: =ESD_REF[[#This Row],[REG_DataVal]] ->  | H53: Custom
A54: ESD | B54: ICE | C54: Ticket Number Reference (SR or IR): | D54: =ESD_REF[[#This Row],[REG_DataVal]] ->  | H54: General
A55: ESD | B55: ICE | C55: Proper greeting used? | D55: =ESD_REF[[#This Row],[REG_DataVal]] -> Yes,No | E55: Yes,No | F55: No | G55: =$R:$AE | H55: General
A56: ESD | B56: ICE | C56: Agent provides their name? | D56: =ESD_REF[[#This Row],[REG_DataVal]] -> Yes,No | E56: Yes,No | F56: No | G56: =$R:$AE | H56: General
A57: ESD | B57: ICE | C57: Answers the call in the selected language? | D57: =ESD_REF[[#This Row],[REG_DataVal]] -> Yes,No | E57: Yes,No | F57: No | G57: =$R:$AE | H57: General
A58: ESD | B58: ICE | C58: Gathers the caller's information, starting with their first name? | D58: =ESD_REF[[#This Row],[REG_DataVal]] -> Yes,No | E58: Yes,No | F58: No | G58: =$R:$AE | H58: General
A59: ESD | B59: ICE | C59: Understands the call and paraphrases? | D59: =ESD_REF[[#This Row],[REG_DataVal]] -> Yes,No | E59: Yes,No | F59: No | G59: =$R:$AE | H59: General
A60: ESD | B60: ICE | C60: Asks "who"? | D60: =ESD_REF[[#This Row],[REG_DataVal]] -> Yes,No | E60: Yes,No | F60: No | G60: =$R:$AE | H60: General
A61: ESD | B61: ICE | C61: Asks "what"? | D61: =ESD_REF[[#This Row],[REG_DataVal]] -> Yes,No,NA | E61: Yes,No,NA | F61: No | G61: =$R:$AE | H61: General
A62: ESD | B62: ICE | C62: Uses professional conduct and tone? | D62: =ESD_REF[[#This Row],[REG_DataVal]] -> Yes,No | E62: Yes,No | F62: No | G62: =$R:$AE | H62: General
A63: ESD | B63: ICE | C63: Uses the proper hold technique? | D63: =ESD_REF[[#This Row],[REG_DataVal]] -> Yes,No | E63: Yes,No | F63: No | G63: =$R:$AE | H63: General
A64: ESD | B64: ICE | C64: The agent did not hang-up or argue with the caller. | D64: =ESD_REF[[#This Row],[REG_DataVal]] -> Yes,No | E64: Yes,No | F64: No | G64: =$R:$AE | H64: General
A65: ESD | B65: ICE | C65: Uses a clear voice and focused dialoge and tone? | D65: =ESD_REF[[#This Row],[REG_DataVal]] -> Yes,No | E65: Yes,No | F65: No | G65: =$R:$AE | H65: General
A66: ESD | B66: ICE | C66: Takes ownership of the call? | D66: =ESD_REF[[#This Row],[REG_DataVal]] -> Yes,No | E66: Yes,No | F66: No | G66: =$R:$AE | H66: General
A67: ESD | B67: ICE | C67: Ticket Number | D67: =ESD_REF[[#This Row],[REG_DataVal]] -> Yes,No | E67: Yes,No | F67: No | G67: =$R:$AE | H67: General
A68: ESD | B68: ICE | C68: Closing Script | D68: =ESD_REF[[#This Row],[REG_DataVal]] -> Yes,No | E68: Yes,No | F68: No | G68: =$R:$AE | H68: General
A69: ESD | B69: ICE | C69: Score | D69: =ESD_REF[[#This Row],[REG_DataVal]] ->  | H69: General
A70: ESD | B70: ICE | C70: Result | D70: =ESD_REF[[#This Row],[REG_DataVal]] -> Pass,Fail,Proces Fail | E70: Pass,Fail,Proces Fail | F70: Pass,Fail | G70: AI:AI | H70: General
A71: ESD | B71: ICE | C71: Comment on Negative result | D71: =ESD_REF[[#This Row],[REG_DataVal]] ->  | H71: General
A72: ESD | B72: ICE | C72: SSC QA Agent | D72: =ESD_REF[[#This Row],[REG_DataVal]] -> Jason Cashman,Chris Doucette,Krishna Madaparti | E72: Jason Cashman,Chris Doucette,Krishna Madaparti | H72: General
A73: ESD | B73: ICE | C73: SSC Score | D73: =ESD_REF[[#This Row],[REG_DataVal]] ->  | H73: General
A74: ESD | B74: ICE | C74: SSC Result | D74: =ESD_REF[[#This Row],[REG_DataVal]] -> Pass,Fail,Proces Fail | E74: Pass,Fail,Proces Fail | G74: AM:AM | H74: General
A75: OSSD | B75: COMBO | C75: Audit Cycle | D75: =ESD_REF[[#This Row],[REG_DataVal]] -> 0 | J75: =IF(AND(OR(F80="Pass", OSSD_NOV_HCCS[@Result]="Fail"),OR(OSSD_NOV_HCCS[@[Select Code]]="P1Nw3T",OSSD_NOV_HCCS[@[Select Code]]="P2Nw3B",OSSD_NOV_HCCS[@[Select Code]]="P3Nw4T",OSSD_NOV_HCCS[@[Select Code]]="P4Nw4B",OSSD_NOV_HCCS[@[Select Code]]="P5N_IW_T",OSSD_NOV_HCCS[@[Select Code]]="P3R_T",OSSD_NOV_HCCS[@[Select Code]]="P4R_IW_T")),"PHOM",IF(AND(OR(OSSD_NOV_HCCS[@Result]="Pass", OSSD_NOV_HCCS[@Result]="Fail"),OR(OSSD_NOV_HCCS[@[Select Code]]="C1Nw1T",OSSD_NOV_HCCS[@[Select Code]]="C2Nw1B",OSSD_NOV_HCCS[@[Select Code]]="C3Nw2T",OSSD_NOV_HCCS[@[Select Code]]="C4Nw2B",OSSD_NOV_HCCS[@[Select Code]]="C5N_IW_T",OSSD_NOV_HCCS[@[Select Code]]="C1Rw1T",OSSD_NOV_HCCS[@[Select Code]]="C2Rw2B")),"CHOM",""))
A76: OSSD | B76: COMBO | C76: Audit Status | D76: =ESD_REF[[#This Row],[REG_DataVal]] -> 0
A77: OSSD | B77: COMBO | C77: QA Agent | D77: =ESD_REF[[#This Row],[REG_DataVal]] -> 0
A78: OSSD | B78: COMBO | C78: Audit date | D78: =ESD_REF[[#This Row],[REG_DataVal]] -> 0
A79: OSSD | B79: COMBO | C79: Key | D79: =ESD_REF[[#This Row],[REG_DataVal]] -> 0
A80: OSSD | B80: COMBO | C80: Active | D80: =ESD_REF[[#This Row],[REG_DataVal]] -> 0
A81: OSSD | B81: COMBO | C81: Ag. Status | D81: =ESD_REF[[#This Row],[REG_DataVal]] -> 0
A82: OSSD | B82: COMBO | C82: OSSD Agent | D82: =ESD_REF[[#This Row],[REG_DataVal]] -> 0
A83: OSSD | B83: COMBO | C83: SM7 Ticket# | D83: =ESD_REF[[#This Row],[REG_DataVal]] -> 0
A84: OSSD | B84: COMBO | C84: Gov Branch | D84: =ESD_REF[[#This Row],[REG_DataVal]] -> PSPC,SSC,CSPS,INFC / EFPC,BOA,NotAvail | E84: PSPC,SSC,CSPS,INFC / EFPC,BOA,NotAvail
A85: OSSD | B85: COMBO | C85: Speechminer Interaction # | D85: =ESD_REF[[#This Row],[REG_DataVal]] -> 0
A86: OSSD | B86: COMBO | C86: Call date | D86: =ESD_REF[[#This Row],[REG_DataVal]] -> 0
A87: OSSD | B87: COMBO | C87: Was the proper greeting used including agent name? | D87: =ESD_REF[[#This Row],[REG_DataVal]] -> Yes,No | E87: Yes,No
A88: OSSD | B88: COMBO | C88: Did the agent answer the call in the language of selection? | D88: =ESD_REF[[#This Row],[REG_DataVal]] -> Yes,No | E88: Yes,No
A89: OSSD | B89: COMBO | C89: Did the agent gather the caller's information, starting with their last name? | D89: =ESD_REF[[#This Row],[REG_DataVal]] -> Yes,No | E89: Yes,No
A90: OSSD | B90: COMBO | C90: Did the agent understand the call and paraphrase? | D90: =ESD_REF[[#This Row],[REG_DataVal]] -> Yes,No | E90: Yes,No
A91: OSSD | B91: COMBO | C91: Did the agent ask "who"? | D91: =ESD_REF[[#This Row],[REG_DataVal]] -> Yes,No | E91: Yes,No
A92: OSSD | B92: COMBO | C92: Did the agent ask "what"? | D92: =ESD_REF[[#This Row],[REG_DataVal]] -> Yes,No,NA | E92: Yes,No,NA
A93: OSSD | B93: COMBO | C93: Did the agent ask "why"? | D93: =ESD_REF[[#This Row],[REG_DataVal]] -> Yes,No,NA | E93: Yes,No,NA
A94: OSSD | B94: COMBO | C94: Did the agent ask "when"? | D94: =ESD_REF[[#This Row],[REG_DataVal]] -> Yes,No,NA | E94: Yes,No,NA
A95: OSSD | B95: COMBO | C95: Did the agent ask "where"? | D95: =ESD_REF[[#This Row],[REG_DataVal]] -> Yes,No,NA | E95: Yes,No,NA
A96: OSSD | B96: COMBO | C96: Did the agent use professional conduct and tone? | D96: =ESD_REF[[#This Row],[REG_DataVal]] -> Yes,No,NA | E96: Yes,No,NA
A97: OSSD | B97: COMBO | C97: Did the agent use the proper hold technique? | D97: =ESD_REF[[#This Row],[REG_DataVal]] -> Yes,No | E97: Yes,No
A98: OSSD | B98: COMBO | C98: The agent did not hang-up or argue with the caller | D98: =ESD_REF[[#This Row],[REG_DataVal]] -> Yes,No | E98: Yes,No
A99: OSSD | B99: COMBO | C99: Did the agent use a clear voice and focused dialoge and tone? | D99: =ESD_REF[[#This Row],[REG_DataVal]] -> Yes,No | E99: Yes,No
A100: OSSD | B100: COMBO | C100: Did the agent take ownership of the call? | D100: =ESD_REF[[#This Row],[REG_DataVal]] -> Yes,No | E100: Yes,No
A101: OSSD | B101: COMBO | C101: Provide ticket or reference number to user | D101: =ESD_REF[[#This Row],[REG_DataVal]] -> Yes,No | E101: Yes,No
A102: OSSD | B102: COMBO | C102: Closing Script | D102: =ESD_REF[[#This Row],[REG_DataVal]] -> Yes,No | E102: Yes,No
A103: OSSD | B103: COMBO | C103: Did agent used proper title format | D103: =ESD_REF[[#This Row],[REG_DataVal]] -> Yes,No,NA | E103: Yes,No,NA
A104: OSSD | B104: COMBO | C104: Did the agent confirm client configuration | D104: =ESD_REF[[#This Row],[REG_DataVal]] -> Yes,No | E104: Yes,No
A105: OSSD | B105: COMBO | C105: Did the agent document a clear description of issue? | D105: =ESD_REF[[#This Row],[REG_DataVal]] -> Yes,No | E105: Yes,No
A106: OSSD | B106: COMBO | C106: Did the agent attempt to resolve issue? | D106: =ESD_REF[[#This Row],[REG_DataVal]] -> Yes,No | E106: Yes,No
A107: OSSD | B107: COMBO | C107: Did the agent prioritize ticket properly | D107: =ESD_REF[[#This Row],[REG_DataVal]] -> Yes,No | E107: Yes,No
A108: OSSD | B108: COMBO | C108: Did the agent categorize properly? | D108: =ESD_REF[[#This Row],[REG_DataVal]] -> Yes,No | E108: Yes,No
A109: OSSD | B109: COMBO | C109: Did the agent document proper CI? | D109: =ESD_REF[[#This Row],[REG_DataVal]] -> Yes,No | E109: Yes,No
A110: OSSD | B110: COMBO | C110: Proper Resolution step documented | D110: =ESD_REF[[#This Row],[REG_DataVal]] -> Yes,No,NA | E110: Yes,No,NA
A111: OSSD | B111: COMBO | C111: Proper closure code used | D111: =ESD_REF[[#This Row],[REG_DataVal]] -> Yes,No,NA | E111: Yes,No,NA
A112: OSSD | B112: COMBO | C112: Score | D112: =ESD_REF[[#This Row],[REG_DataVal]] -> 
A113: OSSD | B113: COMBO | C113: Result | D113: =ESD_REF[[#This Row],[REG_DataVal]] -> Pass,Fail,Proces Fail | E113: Pass,Fail,Proces Fail | G113: AM:AM
A114: OSSD | B114: COMBO | C114: Comment on Negative result | D114: =ESD_REF[[#This Row],[REG_DataVal]] -> 
A115: OSSD | B115: COMBO | C115: SSC QA Agent | D115: =ESD_REF[[#This Row],[REG_DataVal]] -> 
A116: OSSD | B116: COMBO | C116: SSC Score | D116: =ESD_REF[[#This Row],[REG_DataVal]] -> 
A117: OSSD | B117: COMBO | C117: SSC Result | D117: =ESD_REF[[#This Row],[REG_DataVal]] -> Pass,Fail,Proces Fail | E117: Pass,Fail,Proces Fail | G117: AQ:AQ
A118: HC | B118: TIX | C118: QA Agent | D118: =ESD_REF[[#This Row],[REG_DataVal]] -> Yvelson Antoine,Louis Lafleur,Fernando Ortiz,Luc Trudel | E118: Yvelson Antoine,Louis Lafleur,Fernando Ortiz,Luc Trudel | H118: General
A119: HC | B119: TIX | C119: HC Agent: | D119: =ESD_REF[[#This Row],[REG_DataVal]] -> Luc Trudel,Louis Lafleur,Fernando Ortiz,Yvelson Antoine | E119: Luc Trudel,Louis Lafleur,Fernando Ortiz,Yvelson Antoine | H119: General
A120: HC | B120: TIX | C120: ICE_ID | D120: =ESD_REF[[#This Row],[REG_DataVal]] -> 0 | H120: General
A121: HC | B121: TIX | C121: Agent status | D121: =ESD_REF[[#This Row],[REG_DataVal]] -> 0 | H121: General
A122: HC | B122: TIX | C122: Audit date | D122: =ESD_REF[[#This Row],[REG_DataVal]] -> 0 | H122: General
A123: HC | B123: TIX | C123: Call date | D123: =ESD_REF[[#This Row],[REG_DataVal]] -> 0 | H123: General
A124: HC | B124: TIX | C124: Audit Source | D124: =ESD_REF[[#This Row],[REG_DataVal]] -> 0 | H124: General
A125: HC | B125: TIX | C125: SM6 Ticket # | D125: =ESD_REF[[#This Row],[REG_DataVal]] -> 0 | H125: General
A126: HC | B126: TIX | C126: ICE Interaction number | D126: =ESD_REF[[#This Row],[REG_DataVal]] -> 0 | H126: General
A127: HC | B127: TIX | C127: Audit Cycle | D127: =ESD_REF[[#This Row],[REG_DataVal]] -> 0 | H127: General
A128: HC | B128: TIX | C128: Did the agent document the proper requestor information | D128: =ESD_REF[[#This Row],[REG_DataVal]] -> Yes,No | E128: Yes,No | H128: General
A129: HC | B129: TIX | C129: Did the agent document relevant brief description? | D129: =ESD_REF[[#This Row],[REG_DataVal]] -> Yes,No | E129: Yes,No | H129: General
A130: HC | B130: TIX | C130: Did the agent document the ticket using proper process and procedure | D130: =ESD_REF[[#This Row],[REG_DataVal]] -> Yes,No | E130: Yes,No | H130: General
A131: HC | B131: TIX | C131: Did the agent ask "who"? | D131: =ESD_REF[[#This Row],[REG_DataVal]] -> Yes,No | E131: Yes,No | H131: General
A132: HC | B132: TIX | C132: Did the agent ask "what"? | D132: =ESD_REF[[#This Row],[REG_DataVal]] -> Yes,No,NA | E132: Yes,No,NA | H132: General
A133: HC | B133: TIX | C133: Did the agent ask "why"? | D133: =ESD_REF[[#This Row],[REG_DataVal]] -> Yes,No,NA | E133: Yes,No,NA | H133: General
A134: HC | B134: TIX | C134: Did the agent ask "when"? | D134: =ESD_REF[[#This Row],[REG_DataVal]] -> Yes,No,NA | E134: Yes,No,NA | H134: General
A135: HC | B135: TIX | C135: Did the agent ask "where"? | D135: =ESD_REF[[#This Row],[REG_DataVal]] -> Yes,No,NA | E135: Yes,No,NA | H135: General
A136: HC | B136: TIX | C136: Did the agent categorize the proper area and sub-area? | D136: =ESD_REF[[#This Row],[REG_DataVal]] -> Yes,No,NA | E136: Yes,No,NA | H136: General
A137: HC | B137: TIX | C137: Did the agent selects the appropriate Product type? | D137: =ESD_REF[[#This Row],[REG_DataVal]] -> Yes,No,NA | E137: Yes,No,NA | H137: General
A138: HC | B138: TIX | C138: Impact and urgency | D138: =ESD_REF[[#This Row],[REG_DataVal]] -> Yes,No,NA | E138: Yes,No,NA | H138: General
A139: HC | B139: TIX | C139: Did the agent assign the ticket to the appropriate Support Group | D139: =ESD_REF[[#This Row],[REG_DataVal]] -> Yes,No,NA | E139: Yes,No,NA | H139: General
A140: HC | B140: TIX | C140: Resolution (if applicable) | D140: =ESD_REF[[#This Row],[REG_DataVal]] -> Yes,No,NA | E140: Yes,No,NA | H140: General
A141: HC | B141: TIX | C141: Closure (if applicable) | D141: =ESD_REF[[#This Row],[REG_DataVal]] -> Yes,No,NA | E141: Yes,No,NA | H141: General
A142: HC | B142: TIX | C142: Score | D142: =ESD_REF[[#This Row],[REG_DataVal]] -> 0 | H142: General
A143: HC | B143: TIX | C143: Result | D143: =ESD_REF[[#This Row],[REG_DataVal]] -> Pass,Fail,Proces Fail | E143: Pass,Fail,Proces Fail | G143: AF:AF | H143: General
A144: HC | B144: TIX | C144: Comment on Negative result | D144: =ESD_REF[[#This Row],[REG_DataVal]] -> 0 | H144: General
A145: HC | B145: TIX | C145: SSC QA Agent | D145: =ESD_REF[[#This Row],[REG_DataVal]] -> 0 | H145: General
A146: HC | B146: TIX | C146: SSC Score | D146: =ESD_REF[[#This Row],[REG_DataVal]] -> 0 | H146: General
A147: HC | B147: TIX | C147: SSC Result | D147: =ESD_REF[[#This Row],[REG_DataVal]] -> Pass,Fail,Proces Fail | E147: Pass,Fail,Proces Fail | G147: AJ:AJ | H147: General
A148: HC | B148: ICE | C148: Audit Cycle | D148: =ESD_REF[[#This Row],[REG_DataVal]] -> PHOM,CHOM | E148: PHOM,CHOM | F148: ="PHOM" ="CHOM" | G148: =$A:$A | H148: General
A149: HC | B149: ICE | C149: QA Agent | D149: =ESD_REF[[#This Row],[REG_DataVal]] -> Yvelson Antoine,Louis Lafleur,Fernando Ortiz,Luc Trudel | E149: Yvelson Antoine,Louis Lafleur,Fernando Ortiz,Luc Trudel | H149: General
A150: HC | B150: ICE | C150: Audit Date | D150: =ESD_REF[[#This Row],[REG_DataVal]] -> 0 | H150: General
A151: HC | B151: ICE | C151: Key | D151: =ESD_REF[[#This Row],[REG_DataVal]] -> 0 | H151: General
A152: HC | B152: ICE | C152: Ag. Status | D152: =ESD_REF[[#This Row],[REG_DataVal]] -> NEW,REG | E152: NEW,REG | G152: =$E:$E | H152: General | I152: NEW
A153: HC | B153: ICE | C153: ICE # | D153: =ESD_REF[[#This Row],[REG_DataVal]] ->  | H153: General
A154: HC | B154: ICE | C154: ECD ID | D154: =ESD_REF[[#This Row],[REG_DataVal]] ->  | H154: General
A155: HC | B155: ICE | C155: INFOWEB ID | D155: =ESD_REF[[#This Row],[REG_DataVal]] ->  | H155: General
A156: HC | B156: ICE | C156: Select Code | D156: =ESD_REF[[#This Row],[REG_DataVal]] ->  | H156: General
A157: HC | B157: ICE | C157: Dept. | D157: =ESD_REF[[#This Row],[REG_DataVal]] ->  | H157: General
A158: HC | B158: ICE | C158: Link Wav | D158: =ESD_REF[[#This Row],[REG_DataVal]] ->  | H158: General
A159: HC | B159: ICE | C159: File Name | D159: =ESD_REF[[#This Row],[REG_DataVal]] ->  | H159: General
A160: HC | B160: ICE | C160: ICE Queue Language: | D160: =ESD_REF[[#This Row],[REG_DataVal]] ->  | H160: General
A161: HC | B161: ICE | C161: ICE Call recording Date: (DD/MM/YYYY) | D161: =ESD_REF[[#This Row],[REG_DataVal]] ->  | H161: General
A162: HC | B162: ICE | C162: ICE Call time: (H:MM:SS) | D162: =ESD_REF[[#This Row],[REG_DataVal]] ->  | H162: General
A163: HC | B163: ICE | C163: ICE Call duration: (H:MM:SS) | D163: =ESD_REF[[#This Row],[REG_DataVal]] ->  | H163: General
A164: HC | B164: ICE | C164: Ticket Number Reference (SD,IM): | D164: =ESD_REF[[#This Row],[REG_DataVal]] ->  | H164: General
A165: HC | B165: ICE | C165: Proper greeting used? | D165: =ESD_REF[[#This Row],[REG_DataVal]] ->  | H165: General
A166: HC | B166: ICE | C166: Agent provides their name? | D166: =ESD_REF[[#This Row],[REG_DataVal]] ->  | H166: General
A167: HC | B167: ICE | C167: Answers the call in the selected language? | D167: =ESD_REF[[#This Row],[REG_DataVal]] ->  | H167: General
A168: HC | B168: ICE | C168: Gathers the caller's information, starting with their first name? | D168: =ESD_REF[[#This Row],[REG_DataVal]] ->  | H168: General
A169: HC | B169: ICE | C169: Understands the call and paraphrases? | D169: =ESD_REF[[#This Row],[REG_DataVal]] ->  | H169: General
A170: HC | B170: ICE | C170: Asks "who"? | D170: =ESD_REF[[#This Row],[REG_DataVal]] ->  | H170: General
A171: HC | B171: ICE | C171: Asks "what"? | D171: =ESD_REF[[#This Row],[REG_DataVal]] ->  | H171: General
A172: HC | B172: ICE | C172: Did the agent ask "why"? | D172: =ESD_REF[[#This Row],[REG_DataVal]] ->  | H172: General
A173: HC | B173: ICE | C173: Did the agent ask "when"? | D173: =ESD_REF[[#This Row],[REG_DataVal]] ->  | H173: General
A174: HC | B174: ICE | C174: Did the agent ask "where"? | D174: =ESD_REF[[#This Row],[REG_DataVal]] ->  | H174: General
A175: HC | B175: ICE | C175: Uses professional conduct and tone? | D175: =ESD_REF[[#This Row],[REG_DataVal]] ->  | H175: General
A176: HC | B176: ICE | C176: Uses the proper hold technique? | D176: =ESD_REF[[#This Row],[REG_DataVal]] ->  | H176: General
A177: HC | B177: ICE | C177: The agent did not hang-up or argue with the caller. | D177: =ESD_REF[[#This Row],[REG_DataVal]] ->  | H177: General
A178: HC | B178: ICE | C178: Uses a clear voice and focused dialoge and tone? | D178: =ESD_REF[[#This Row],[REG_DataVal]] ->  | H178: General
A179: HC | B179: ICE | C179: Takes ownership of the call? | D179: =ESD_REF[[#This Row],[REG_DataVal]] ->  | H179: General
A180: HC | B180: ICE | C180: Ticket Number | D180: =ESD_REF[[#This Row],[REG_DataVal]] ->  | H180: General
A181: HC | B181: ICE | C181: Closing Script | D181: =ESD_REF[[#This Row],[REG_DataVal]] ->  | H181: General
A182: HC | B182: ICE | C182: Score | D182: =ESD_REF[[#This Row],[REG_DataVal]] ->  | H182: General
A183: HC | B183: ICE | C183: Result | D183: =ESD_REF[[#This Row],[REG_DataVal]] -> Pass,Fail,Proces Fail | E183: Pass,Fail,Proces Fail | G183: AL:AL | H183: General
A184: HC | B184: ICE | C184: Comment on Negative result | D184: =ESD_REF[[#This Row],[REG_DataVal]] ->  | H184: General
A185: HC | B185: ICE | C185: SSC QA Agent | D185: =ESD_REF[[#This Row],[REG_DataVal]] ->  | H185: General
A186: HC | B186: ICE | C186: SSC Score | D186: =ESD_REF[[#This Row],[REG_DataVal]] ->  | H186: General
A187: HC | B187: ICE | C187: SSC Result | D187: =ESD_REF[[#This Row],[REG_DataVal]] -> Pass,Fail,Proces Fail | E187: Pass,Fail,Proces Fail | G187: AP:AP | H187: General
A188: RFL | B188: QUOTE | C188: Audit Cycle | D188: =ESD_REF[[#This Row],[REG_DataVal]] ->  | G188: =$A:$A -> RFL
A189: RFL | B189: QUOTE | C189: Audit Status | D189: =ESD_REF[[#This Row],[REG_DataVal]] ->  | G189: RFL
A190: RFL | B190: QUOTE | C190: QA Agent | D190: =ESD_REF[[#This Row],[REG_DataVal]] ->  | G190: RFL
A191: RFL | B191: QUOTE | C191: Audit date | D191: =ESD_REF[[#This Row],[REG_DataVal]] ->  | G191: RFL
A192: RFL | B192: QUOTE | C192: Key | D192: =ESD_REF[[#This Row],[REG_DataVal]] ->  | G192: RFL
A193: RFL | B193: QUOTE | C193: Agent status | D193: =ESD_REF[[#This Row],[REG_DataVal]] ->  | G193: RFL
A194: RFL | B194: QUOTE | C194: AgentLast,First | D194: =ESD_REF[[#This Row],[REG_DataVal]] ->  | G194: RFL
A195: RFL | B195: QUOTE | C195: SM7 ID | D195: =ESD_REF[[#This Row],[REG_DataVal]] ->  | G195: RFL
A196: RFL | B196: QUOTE | C196: Select Code | D196: =ESD_REF[[#This Row],[REG_DataVal]] ->  | G196: RFL | J196: =IF(AND(OR(X195="Pass", X195="Fail"),OR(#REF!="P1Nw3T",#REF!="P2Nw3B",#REF!="P3Nw4T",#REF!="P4Nw4B",#REF!="P5N_IW_T",#REF!="P3R_T",#REF!="P4R_IW_T")),"PHOM",IF(AND(OR(X195="Pass", X195="Fail"),OR(#REF!="C1Nw1T",#REF!="C2Nw1B",#REF!="C3Nw2T",#REF!="C4Nw2B",#REF!="C5N_IW_T",#REF!="C1Rw1T",#REF!="C2Rw2B")),"CHOM","")) -> 
A197: RFL | B197: QUOTE | C197: SM7 Quotes # | D197: =ESD_REF[[#This Row],[REG_DataVal]] ->  | G197: RFL | J197: =IF(AND(OR(X196="Pass", X196="Fail"),OR(#REF!="P1Nw3T",#REF!="P2Nw3B",#REF!="P3Nw4T",#REF!="P4Nw4B",#REF!="P5N_IW_T",#REF!="P3R_T",#REF!="P4R_IW_T")),"PHOM",IF(AND(OR(X196="Pass", X196="Fail"),OR(#REF!="C1Nw1T",#REF!="C2Nw1B",#REF!="C3Nw2T",#REF!="C4Nw2B",#REF!="C5N_IW_T",#REF!="C1Rw1T",#REF!="C2Rw2B")),"CHOM","")) -> 
A198: RFL | B198: QUOTE | C198: Audit Source | D198: =ESD_REF[[#This Row],[REG_DataVal]] ->  | G198: RFL | J198: =IF(AND(OR(X197="Pass", X197="Fail"),OR(#REF!="P1Nw3T",#REF!="P2Nw3B",#REF!="P3Nw4T",#REF!="P4Nw4B",#REF!="P5N_IW_T",#REF!="P3R_T",#REF!="P4R_IW_T")),"PHOM",IF(AND(OR(X197="Pass", X197="Fail"),OR(#REF!="C1Nw1T",#REF!="C2Nw1B",#REF!="C3Nw2T",#REF!="C4Nw2B",#REF!="C5N_IW_T",#REF!="C1Rw1T",#REF!="C2Rw2B")),"CHOM","")) -> 
A199: RFL | B199: QUOTE | C199: Gouv Entity | D199: =ESD_REF[[#This Row],[REG_DataVal]] ->  | G199: RFL | J199: =IF(AND(OR(X198="Pass", X198="Fail"),OR(#REF!="P1Nw3T",#REF!="P2Nw3B",#REF!="P3Nw4T",#REF!="P4Nw4B",#REF!="P5N_IW_T",#REF!="P3R_T",#REF!="P4R_IW_T")),"PHOM",IF(AND(OR(X198="Pass", X198="Fail"),OR(#REF!="C1Nw1T",#REF!="C2Nw1B",#REF!="C3Nw2T",#REF!="C4Nw2B",#REF!="C5N_IW_T",#REF!="C1Rw1T",#REF!="C2Rw2B")),"CHOM","")) -> 
A200: RFL | B200: QUOTE | C200: Quote Creation Date | D200: =ESD_REF[[#This Row],[REG_DataVal]] ->  | G200: RFL | J200: =IF(AND(OR(X199="Pass", X199="Fail"),OR(#REF!="P1Nw3T",#REF!="P2Nw3B",#REF!="P3Nw4T",#REF!="P4Nw4B",#REF!="P5N_IW_T",#REF!="P3R_T",#REF!="P4R_IW_T")),"PHOM",IF(AND(OR(X199="Pass", X199="Fail"),OR(#REF!="C1Nw1T",#REF!="C2Nw1B",#REF!="C3Nw2T",#REF!="C4Nw2B",#REF!="C5N_IW_T",#REF!="C1Rw1T",#REF!="C2Rw2B")),"CHOM","")) -> 
... 16 more rows

Sheet Call_Workload (hidden)
A1: Total Monthly Projection Calls | B1: Percentage per week | C1: Calls Audits | D1: days in wk | E1: Daily Requirement | K1: Total HOM Cycle Projection Calls | L1: Percentage per week | M1: Calls Audits per week | N1: days in wk | O1: Daily Requirement
A2: 100 | B2: 0.25 | C2: =_xlfn.CEILING.MATH(A$2*B$2) -> 25 | D2: 5 | E2: =_xlfn.CEILING.MATH(C2/D2) -> 5 | K2: 50 | L2: 0.5 | M2: =_xlfn.CEILING.MATH(K$2*L$2) -> 25 | N2: 5 | O2: =_xlfn.CEILING.MATH(M2/N2) -> 5
C3: =_xlfn.CEILING.MATH(A$2*B$2) -> 25 | D3: 5 | E3: =_xlfn.CEILING.MATH(C3/D3) -> 5 | M3: =_xlfn.CEILING.MATH(K2*L2) -> 25 | N3: 5 | O3: =_xlfn.CEILING.MATH(M3/N3) -> 5
C4: =_xlfn.CEILING.MATH(A$2*B$2) -> 25 | D4: 5 | E4: =_xlfn.CEILING.MATH(C4/D4) -> 5 | N4: TwoWeeksDays
C5: =_xlfn.CEILING.MATH(A$2*B$2) -> 25 | D5: 5 | E5: =_xlfn.CEILING.MATH(C5/D5) -> 5 | M5: =SUM(M2:M3) -> 50 | N5: 10
K6: Budgeted hours | L6: QA Agents | O6: FactorTimePerCall | P6: HoursNeededPerDay
C7: =SUM(C2:C5) -> 100 | K7: 37.5 | L7: 1 | M7: =(K$7*L$7) -> 37.5
M8: =(K$7*L$7) -> 37.5
C9: 7.5 | D9: 5 | E9: =C9*D9 -> 37.5
C10: 7.5 | D10: 5 | E10: =C10*D10 -> 37.5 | M10: =SUM(M7:M8) -> 75 | N10: 5 | O10: 00:00:36 | P10: =N10*O10 -> 00:03:00
C11: 7.5 | D11: 5 | E11: =C11*D11 -> 37.5
C12: 7.5 | D12: 5 | E12: =C12*D12 -> 37.5
E13: =SUM(E9:E12) -> 150
E14: Daily Minutes | G14: Weekly Minutes | I14: Monthly Minutes
C15: 7.5 | D15: 60 | E15: 180 | F15: 5 | G15: =E15*F15 -> 900 | H15: 4 | I15: =G15*H15 -> 3600
B19: 2018-11-08 | C19: Calls QuickLateness Calculator
A20: Current Day in Cycle | B20: 9 | C20: =E2 -> 5 | D20: =B20*C20 -> 45
C21: done | D21: 15 | F21: daysLate | G21: UsualTimePerDay | I21: TimeLateTotal
D22: =D20-D21 -> 30 | E22: Late Calls Status | F22: =D22/E2 -> 6 | G22: 3 | I22: =F22*G22 -> 18 | J22: hours
I25: CombinedLateness
I26: =I22+Ticket_Workload!I20 -> 49.69230769 | J26: =I26/C9 -> 6.625641026

Sheet Ticket_Workload (hidden)
A1: Total Projection Tickets | B1: Percentage per week | C1: Tickets Audits | D1: days in wk | E1: Daily Requirement
A2: =124*2 -> 248 | B2: 0.25 | C2: =_xlfn.CEILING.MATH(A2*B2) -> 62 | D2: 5 | E2: =_xlfn.CEILING.MATH(C2/D2) -> 13
B3: 0.25 | C3: =_xlfn.CEILING.MATH(A2*B2) -> 62 | D3: 5 | E3: =_xlfn.CEILING.MATH(C3/D3) -> 13
B4: 0.25 | C4: =_xlfn.CEILING.MATH(A2*B2) -> 62 | D4: 5 | E4: =_xlfn.CEILING.MATH(C4/D4) -> 13
B5: 0.25 | C5: =_xlfn.CEILING.MATH(A2*B2) -> 62 | D5: 5 | E5: =_xlfn.CEILING.MATH(C5/D5) -> 13
C7: =SUM(C2:C5) -> 248
C11: Daily
C12: Calls | D12: 5
C13: Tickets | D13: 13
B17: 2018-11-08 | C17: Tickets QuickLateness Calculator
A18: Current Day in Cycle | B18: 8 | C18: =E2 -> 13 | D18: =B18*C18 -> 104
D19: 1 | F19: daysLate
D20: =D18-D19 -> 103 | E20: Late Calls Status | F20: =D20/E2 -> 7.923076923 | G20: 4 | I20: =F20*G20 -> 31.69230769 | J20: hours

Sheet TicketListCreator
A1: 1 | B1: JEAN-PIERRE.NDAYIZEYE | C1: 2 | D1: 1 | E1: =VLOOKUP(D1,$A$1:$B$97,2) -> JEAN-PIERRE.NDAYIZEYE
A2: =A1+C1 -> 3 | B2: AURELIE.LUNDJA | C2: 2 | D2: 2 | E2: JEAN-PIERRE.NDAYIZEYE
A3: 5 | B3: ISMAIL-MOHAMOUD.HERSI | C3: 2 | D3: 3 | E3: AURELIE.LUNDJA
A4: 7 | B4: JIHANE.BAMANISSA | C4: 2 | D4: 4 | E4: AURELIE.LUNDJA
A5: 9 | B5: ANIKA.CHOUDHURY | C5: 2 | D5: 5 | E5: ISMAIL-MOHAMOUD.HERSI
A6: 11 | B6: CHRISTOPHER.KABOUCHI | C6: 2 | D6: 6 | E6: ISMAIL-MOHAMOUD.HERSI
A7: 13 | B7: DOUALEH.AHMED-ISMAEL | C7: 2 | D7: 7 | E7: JIHANE.BAMANISSA
A8: 15 | B8: SOUBER.ISMAEL | C8: 2 | D8: 8 | E8: JIHANE.BAMANISSA
A9: 17 | B9: BRUCE.JOHNSON | C9: 2 | D9: 9 | E9: ANIKA.CHOUDHURY
A10: 19 | B10: GRAHAM.STEWART2 | C10: 2 | D10: 10 | E10: ANIKA.CHOUDHURY
A11: 21 | B11: ROBERT.JOSEPH | C11: 2 | D11: 11 | E11: CHRISTOPHER.KABOUCHI
A12: 23 | B12: HENDRICK.PAPE | C12: 2 | D12: 12 | E12: =VLOOKUP(D12,$A$1:$B$97,2) -> CHRISTOPHER.KABOUCHI
A13: 25 | B13: VEDRAN.ANDJIC | C13: 2 | D13: 13 | E13: =VLOOKUP(D13,$A$1:$B$97,2) -> DOUALEH.AHMED-ISMAEL
A14: 27 | B14: THIERRY.GASANA2 | C14: 2 | D14: 14 | E14: DOUALEH.AHMED-ISMAEL
A15: 29 | B15: DAN.DONOVAN | C15: 2 | D15: 15 | E15: SOUBER.ISMAEL
A16: 31 | B16: JEAN-FRANCOIS.PATRY | C16: 2 | D16: 16 | E16: SOUBER.ISMAEL
A17: 33 | B17: BOUH.HOUSSEIN | C17: 2 | D17: 17 | E17: BRUCE.JOHNSON
A18: 35 | B18: ROD.TOWEY | C18: 2 | D18: 18 | E18: BRUCE.JOHNSON
A19: 37 | B19: DONALD.ROSS | C19: 2 | D19: 19 | E19: GRAHAM.STEWART2
A20: 39 | B20: PATRICE.LOUKOU | C20: 2 | D20: 20 | E20: GRAHAM.STEWART2
A21: 41 | B21: DEBBIE.MARTIN3 | C21: 2 | D21: 21 | E21: ROBERT.JOSEPH
A22: 43 | B22: SAMI.KAMIL | C22: 2 | D22: 22 | E22: ROBERT.JOSEPH
A23: 45 | B23: BORIS.DAKOURE | C23: 2 | D23: 23 | E23: HENDRICK.PAPE
A24: 47 | B24: MOUNKAILA.HAROUNA2 | C24: 2 | D24: 24 | E24: HENDRICK.PAPE
A25: 49 | B25: MOCTAR.NDIAYE | C25: 2 | D25: 25 | E25: VEDRAN.ANDJIC
A26: 51 | B26: STEVE.JEAN-BAPTISTE2 | C26: 2 | D26: 26 | E26: VEDRAN.ANDJIC
A27: 53 | B27: NICOLAS.MATTARD-MICHAUD | C27: 2 | D27: 27 | E27: THIERRY.GASANA2
A28: 55 | B28: HAKIM.ABDAT | C28: 2 | D28: 28 | E28: THIERRY.GASANA2
A29: 57 | B29: ERIC-ALEXANDRE.ROUSSEL | C29: 2 | D29: 29 | E29: DAN.DONOVAN
A30: 59 | B30: MARILINE.BUVAT | C30: 2 | D30: 30 | E30: DAN.DONOVAN
A31: 61 | B31: IAN.BROOM | C31: 2 | D31: 31 | E31: JEAN-FRANCOIS.PATRY
A32: 63 | B32: WARSAMA.ELMI | C32: 2 | D32: 32 | E32: JEAN-FRANCOIS.PATRY
A33: 65 | B33: MATT.MARTINEAU | C33: 2 | D33: 33 | E33: BOUH.HOUSSEIN
A34: 67 | B34: DAN.FRIEL | C34: 2 | D34: 34 | E34: BOUH.HOUSSEIN
A35: 69 | B35: EMERSON.HILAIRE | C35: 2 | D35: 35 | E35: ROD.TOWEY
A36: 71 | B36: GHAYDA.EL-HAG | C36: 2 | D36: 36 | E36: ROD.TOWEY
A37: 73 | B37: DANIEL.GRACIA | C37: 2 | D37: 37 | E37: DONALD.ROSS
A38: 75 | B38: ARNOLD.STOTZ | C38: 2 | D38: 38 | E38: DONALD.ROSS
A39: 77 | B39: JANICE.KELSEY | C39: 2 | D39: 39 | E39: PATRICE.LOUKOU
A40: 79 | B40: MICHEL.MAINVILLE | C40: 2 | D40: 40 | E40: PATRICE.LOUKOU
A41: 81 | B41: ISMAEL.AWALEH | C41: 2 | D41: 41 | E41: DEBBIE.MARTIN3
A42: 83 | B42: ANTHONY.FRANCIS | C42: 2 | D42: 42 | E42: DEBBIE.MARTIN3
A43: 85 | B43: HENRYESOH.EPIEBRANDONE | C43: 2 | D43: 43 | E43: SAMI.KAMIL
A44: 87 | B44: DAVID.KIOBOLA | C44: 2 | D44: 44 | E44: SAMI.KAMIL
A45: 89 | B45: LUC.PLASSY2 | C45: 2 | D45: 45 | E45: BORIS.DAKOURE
A46: 91 | B46: MIHAI.CHIRIAC | C46: 2 | D46: 46 | E46: BORIS.DAKOURE
A47: 93 | B47: KETSIA.ST-LOUISNOEL | C47: 2 | D47: 47 | E47: MOUNKAILA.HAROUNA2
A48: 95 | B48: ABDOULKADER.ISMAEL | C48: 2 | D48: 48 | E48: MOUNKAILA.HAROUNA2
A49: 97 | B49: FIDELE.RWOGERA | C49: 2 | D49: 49 | E49: MOCTAR.NDIAYE
A50: 99 | B50: POLANICOLE.MATHO | C50: 2 | D50: 50 | E50: MOCTAR.NDIAYE
A51: 101 | B51: JESSICA.JEAN-CHATAIGNE | C51: 2 | D51: 51 | E51: STEVE.JEAN-BAPTISTE2
A52: 103 | B52: DONALD.ROSS | C52: 2 | D52: 52 | E52: STEVE.JEAN-BAPTISTE2
A53: 105 | B53: MOCTAR.NDIAYE | C53: 2 | D53: 53 | E53: NICOLAS.MATTARD-MICHAUD
A54: 107 | B54: WARSAMA.ELMI | C54: 2 | D54: 54 | E54: NICOLAS.MATTARD-MICHAUD
A55: 109 | B55: FIDELE.RWOGERA | C55: 2 | D55: 55 | E55: HAKIM.ABDAT
D56: 56 | E56: HAKIM.ABDAT
D57: 57 | E57: ERIC-ALEXANDRE.ROUSSEL
D58: 58 | E58: ERIC-ALEXANDRE.ROUSSEL
D59: 59 | E59: MARILINE.BUVAT
D60: 60 | E60: MARILINE.BUVAT
D61: 61 | E61: IAN.BROOM
D62: 62 | E62: IAN.BROOM
D63: 63 | E63: WARSAMA.ELMI
D64: 64 | E64: WARSAMA.ELMI
D65: 65 | E65: MATT.MARTINEAU
D66: 66 | E66: MATT.MARTINEAU
D67: 67 | E67: DAN.FRIEL
D68: 68 | E68: DAN.FRIEL
D69: 69 | E69: EMERSON.HILAIRE
D70: 70 | E70: EMERSON.HILAIRE
D71: 71 | E71: GHAYDA.EL-HAG
D72: 72 | E72: GHAYDA.EL-HAG
D73: 73 | E73: DANIEL.GRACIA
D74: 74 | E74: DANIEL.GRACIA
D75: 75 | E75: ARNOLD.STOTZ
D76: 76 | E76: ARNOLD.STOTZ
D77: 77 | E77: =VLOOKUP(D77,$A$1:$B$97,2) -> JANICE.KELSEY
D78: 78 | E78: JANICE.KELSEY
D79: 79 | E79: MICHEL.MAINVILLE
D80: 80 | E80: MICHEL.MAINVILLE
D81: 81 | E81: ISMAEL.AWALEH
D82: 82 | E82: ISMAEL.AWALEH
D83: 83 | E83: ANTHONY.FRANCIS
D84: 84 | E84: ANTHONY.FRANCIS
D85: 85 | E85: HENRYESOH.EPIEBRANDONE
D86: 86 | E86: HENRYESOH.EPIEBRANDONE
D87: 87 | E87: DAVID.KIOBOLA
D88: 88 | E88: DAVID.KIOBOLA
D89: 89 | E89: LUC.PLASSY2
D90: 90 | E90: LUC.PLASSY2
D91: 91 | E91: MIHAI.CHIRIAC
D92: 92 | E92: MIHAI.CHIRIAC
D93: 93 | E93: KETSIA.ST-LOUISNOEL
D94: 94 | E94: KETSIA.ST-LOUISNOEL
D95: 95 | E95: ABDOULKADER.ISMAEL
D96: 96 | E96: ABDOULKADER.ISMAEL
D97: 97 | E97: FIDELE.RWOGERA
D98: 98 | E98: FIDELE.RWOGERA
D99: 99 | E99: POLANICOLE.MATHO
D100: 100 | E100: POLANICOLE.MATHO
D101: 101 | E101: JESSICA.JEAN-CHATAIGNE
D102: 102 | E102: JESSICA.JEAN-CHATAIGNE
D103: 103 | E103: DONALD.ROSS
D104: 104 | E104: DONALD.ROSS
D105: 105 | E105: MOCTAR.NDIAYE
D106: 106 | E106: MOCTAR.NDIAYE
D107: 107 | E107: WARSAMA.ELMI
D108: 108 | E108: WARSAMA.ELMI
D109: 109 | E109: FIDELE.RWOGERA
D110: 110 | E110: FIDELE.RWOGERA
D111: 111 | E111: FIDELE.RWOGERA
D112: 112 | E112: FIDELE.RWOGERA
D113: 113 | E113: FIDELE.RWOGERA
D114: 114 | E114: FIDELE.RWOGERA
D115: 115 | E115: FIDELE.RWOGERA
D116: 116 | E116: FIDELE.RWOGERA
D117: 117 | E117: FIDELE.RWOGERA
D118: 118 | E118: FIDELE.RWOGERA
D119: 119 | E119: FIDELE.RWOGERA
D120: 120 | E120: FIDELE.RWOGERA
D121: 121 | E121: FIDELE.RWOGERA
D122: 122 | E122: FIDELE.RWOGERA
D123: 123 | E123: FIDELE.RWOGERA
D124: 124 | E124: FIDELE.RWOGERA
D125: 125 | E125: FIDELE.RWOGERA
D126: 126 | E126: FIDELE.RWOGERA
D127: 127 | E127: =VLOOKUP(D127,$A$1:$B$97,2) -> FIDELE.RWOGERA
D128: 128 | E128: =VLOOKUP(D128,$A$1:$B$97,2) -> FIDELE.RWOGERA
D129: 129 | E129: =VLOOKUP(D129,$A$1:$B$97,2) -> FIDELE.RWOGERA
D130: 130 | E130: =VLOOKUP(D130,$A$1:$B$97,2) -> FIDELE.RWOGERA
D131: 131 | E131: =VLOOKUP(D131,$A$1:$B$97,2) -> FIDELE.RWOGERA
D132: 132 | E132: =VLOOKUP(D132,$A$1:$B$97,2) -> FIDELE.RWOGERA
D133: 133 | E133: FIDELE.RWOGERA
D134: 134 | E134: FIDELE.RWOGERA
D135: 135 | E135: FIDELE.RWOGERA
D136: 136 | E136: FIDELE.RWOGERA
D137: 137 | E137: FIDELE.RWOGERA
D138: 138 | E138: FIDELE.RWOGERA
D139: 139 | E139: FIDELE.RWOGERA
D140: 140 | E140: FIDELE.RWOGERA
D141: 141 | E141: FIDELE.RWOGERA
D142: 142 | E142: FIDELE.RWOGERA
D143: 143 | E143: FIDELE.RWOGERA
D144: 144 | E144: FIDELE.RWOGERA
D145: 145 | E145: FIDELE.RWOGERA
D146: 146 | E146: FIDELE.RWOGERA
D147: 147 | E147: FIDELE.RWOGERA
D148: 148 | E148: FIDELE.RWOGERA
D149: 149 | E149: FIDELE.RWOGERA
D150: 150 | E150: FIDELE.RWOGERA
D151: 151 | E151: FIDELE.RWOGERA
D152: 152 | E152: FIDELE.RWOGERA
D153: 153 | E153: FIDELE.RWOGERA
D154: 154 | E154: FIDELE.RWOGERA
D155: 155 | E155: FIDELE.RWOGERA
D156: 156 | E156: FIDELE.RWOGERA
D157: 157 | E157: FIDELE.RWOGERA
D158: 158 | E158: FIDELE.RWOGERA

Sheet TEMP (hidden)
